Cogmind - Beta 16.1 *** ADVENTURER MODE // 2026.02.17 @ 16:08:26 Player: liability Result: Destroyed by Z-Imprinter with Zionite Laser-M Performance ------------- Evolutions (3) 1500 Regions Visited (9) 1800 Robots Destroyed (96) 480 Value Destroyed (3034) 3034 Prototype IDs (10) 200 Alien Tech Used (0) 0 Bonus (123) 123 TOTAL SCORE: 7137 Bonus ------- Follower Combat Kills 123 Cogmind --------- Core Integrity 0/700 Matter 270/300 Energy 75/100 System Corruption 0% Temperature Cool (36) Movement Core (50) Location -7/Deep Caves Parts ------- > --- POWER (2) -------- (None) > --- PROPULSION (3) --- (None) > --- UTILITY (5) ------ Surveybot 24 Chip > --- WEAPON (3) ------- (None) > --- INVENTORY (5) ---- Improved Heat Sink Relay Coupler [NC] (28) Relay Coupler [Grunt] (28) Particle Gun Peak State ------------ > --- POWER ------------ Makeshift Power Source > --- PROPULSION ------- Aluminum Leg Aluminum Leg Flexi-carbon Leg > --- UTILITY ---------- Improved Heat Sink Small Storage Unit Surveybot 24 Scanner Surveybot 24 Chip Hacking Drone Bay > --- WEAPON ----------- Makeshift Laser Improved Remote Datajack CR-A16's Pointy Stick > --- INVENTORY -------- Relay Coupler [NC] Relay Coupler [Grunt] Particle Gun [Rating: 54] Favorites ----------- Power Improved Deuterium Engine Engine Improved Deuterium Engine Power Core Light Nuclear Core Propulsion Aluminum Leg Leg Aluminum Leg Utility Small Storage Unit Device Improved Heat Sink Storage Small Storage Unit Processor Transport Network Coupler Protection Improved Medium Armor Plating Weapon Cooled Pulse Rifle Energy Gun Cooled Pulse Rifle Energy Cannon Advanced Beam Cannon Special Weapon Improved Remote Datajack Piercing Weapon CR-A16's Pointy Stick Build | -11 -10 -9 -9 -8 -7 -7 -7 -7 -7 ------- Run | Yrd Mat Mat Sto Mat Fac Low Low Zio Dee Slots Evolved 6 | . . 2 . 2 2 . . . . Power 1 | . . . . . 1 . . . . Propulsion 1 | . . . . 1 . . . . . Utility 3 | . . 2 . . 1 . . . . Weapon 1 | . . . . 1 . . . . . Parts Attached 72 | 6 2 8 13 7 15 1 11 4 5 Power 15 | 1 . 1 4 1 5 1 1 1 . Engine 12 | 1 . 1 4 1 4 . . 1 . Core 3 | . . . . . 1 1 1 . . Reactor . | . . . . . . . . . . Propulsion 17 | 2 . 3 4 3 1 . 3 1 . Treads . | . . . . . . . . . . Leg 17 | 2 . 3 4 3 1 . 3 1 . Wheel . | . . . . . . . . . . Hover . | . . . . . . . . . . Flight . | . . . . . . . . . . Utility 19 | 1 1 2 3 1 5 . 3 1 2 Device 14 | . 1 1 2 1 4 . 3 1 1 Storage 1 | 1 . . . . . . . . . Processor 2 | . . . 1 . . . . . 1 Hackware . | . . . . . . . . . . Protection 2 | . . 1 . . 1 . . . . Artifact . | . . . . . . . . . . Weapon 21 | 2 1 2 2 2 4 . 4 1 3 Energy Gun 15 | 2 . 1 1 2 3 . 4 . 2 Energy Cannon 4 | . 1 1 1 . 1 . . . . Ballistic Gun . | . . . . . . . . . . Ballistic Cannon . | . . . . . . . . . . Launcher . | . . . . . . . . . . Special Weapon 1 | . . . . . . . . . 1 Impact Weapon . | . . . . . . . . . . Slashing Weapon . | . . . . . . . . . . Piercing Weapon 1 | . . . . . . . . 1 . Special Melee Weapon . | . . . . . . . . . . Unidentified Prototypes 8 | . . 3 2 2 . . . 1 . Parts Lost 34 | . . 1 4 . 5 2 13 . 9 Power 7 | . . . . . 2 1 2 . 2 Propulsion 9 | . . . 2 . 1 1 2 . 3 Utility 9 | . . . 2 . 1 . 4 . 2 Weapon 9 | . . 1 . . 1 . 5 . 2 Highest Loss Streak 8 | . . 1 2 . 2 1 8 . 6 To Critical Strikes . | . . . . . . . . . . Average Backups 4 | . 1 5 5 5 5 6 4 3 3 Power . | . . 1 1 . . . . . . Propulsion . | . . 1 . 1 . . . . . Utility 1 | . . . 1 2 2 3 2 2 2 Weapon 1 | . . 1 2 2 2 2 . . 1 Tool/Special . | . . . . . . . . . . Unused Backups 8 | . . . 3 . 3 . . . 2 Power 3 | . . . 3 . . . . . . Propulsion . | . . . . . . . . . . Utility 4 | . . . . . 2 . . . 2 Weapon 1 | . . . . . 1 . . . . Tool/Special . | . . . . . . . . . . Average Slot Usage (%) 87 | . 89 92 97 99 96 88 66 83 88 Engine 7 | . 14 11 10 9 9 6 2 1 6 Core 3 | . . . . . 4 4 6 7 . Leg 16 | . 28 22 21 27 21 14 1 15 21 Device 18 | . 3 18 21 18 19 15 17 20 21 Storage 8 | . 14 11 11 9 7 7 7 7 6 Processor 5 | . . . 2 9 7 7 7 7 7 Protection 3 | . . 7 7 . 2 7 2 . . Energy Gun 13 | . 23 9 11 9 13 15 16 15 7 Energy Cannon 6 | . 4 12 10 17 8 7 2 . . Peak Build Rating 54 | 6 7 15 18 21 40 41 39 42 54 Average Rating 26 | 5 6 12 15 18 32 38 29 31 47 On Entrance 20 | . 6 7 15 14 19 39 39 20 42 Avg Prop Armor Cover (%) 6 | . . 6 . . . . . . . Naked Turns . | . . . . . . . . . . Heaviest Build 53 | 13 17 30 33 25 45 53 53 27 27 Greatest Support 40 | 20 20 20 20 33 33 23 20 40 40 Greatest Overweight (x) 17 | 1 . 2 1 . 1 5 17 1 1 Average Overweight (x) 1 | . . . . . . 1 5 . . Largest Inventory Capacity 8 | 8 8 8 8 8 8 8 8 8 8 Average Capacity 7 | 7 8 8 8 8 8 8 8 8 7 Most Carried 8 | 5 5 7 8 7 8 7 6 5 5 Average Carried 4 | . 1 5 5 5 5 6 4 3 3 Final Capacity 8 | 8 8 8 8 8 8 8 8 8 5 Final Carried 8 | . 4 6 8 5 6 6 3 5 4 Class Distribution -------------------- 31% | Scavenger-Mutant 20% | Mutant 20% | Scavenger-Tank 13% | Scavenger-Skirmisher 7% | Tank 6% | Commander-Skirmisher Dominant Class ---------------- Mutant | -10/Materials Mutant | -9/Materials Scavenger-Mutant | -9/Storage Commander-Skirmisher | -8/Materials Scavenger-Skirmisher | -7/Factory Scavenger-Tank | -7/Lower Caves Scavenger-Mutant | -7/Lower Caves Scavenger-Mutant | -7/Zion Scavenger-Mutant | -7/Deep Caves Resources | -11 -10 -9 -9 -8 -7 -7 -7 -7 -7 ----------- Run | Yrd Mat Mat Sto Mat Fac Low Low Zio Dee Matter Collected 1025 | 249 31 100 162 112 138 71 75 50 37 Remotely . | . . . . . . . . . . Salvage Created 4209 | . 125 465 1500 59 1096 165 738 . 61 Parts 211 | . 11 28 92 5 51 3 21 . . Haulers Intercepted 5 | . . . 4 1 . . . . . Recyclers Shooed 3 | . . 2 1 . . . . . . Parts Field Recycled . | . . . . . . . . . . Retrieved Matter . | . . . . . . . . . . Parts Self-Destructed 16 | . . . . . . 2 14 . . Prevented . | . . . . . . . . . . Parts Restored . | . . . . . . . . . . Kills | -11 -10 -9 -9 -8 -7 -7 -7 -7 -7 ------- Run | Yrd Mat Mat Sto Mat Fac Low Low Zio Dee Combat Hostiles Destroyed 79 | . 5 11 28 . 18 2 12 . 3 Melee 2 | . . . . . . . . . 2 Guns 32 | . 5 4 9 . 4 . 9 . 1 Cannons 34 | . . 7 16 . 10 . 1 . . AOE 2 | . . . . . 2 . . . . Classes Destroyed 14 | . 2 4 3 . 3 1 . . 1 Builder 1 | . . . . . 1 . . . . Hauler 5 | . . . 4 1 . . . . . Recycler 5 | . . 1 1 . 3 . . . . Operator 3 | . . 1 . 1 1 . . . . Watcher 6 | . . 2 2 . 2 . . . . Swarmer 26 | . 3 6 7 . 7 . 3 . . Grunt 18 | . 2 1 6 . 3 . 6 . . Brawler 2 | . . . 1 . . . 1 . . Duelist 1 | . . . 1 . . . . . . Sentry 21 | . . 4 13 . 3 1 . . . Hunter 5 | . . . . . 2 1 2 . . Programmer 3 | . . . . . 3 . . . . Samaritan 1 | . . . . . . 1 . . . Assembled 3 | . . . . . . . . . 3 Best Kill Streak 8 | . 3 4 8 1 7 1 5 . 3 Combat Bots Only 8 | . 3 4 8 . 7 1 5 . 3 Max Kills in Single Turn 2 | . 1 1 1 1 2 1 1 . 1 Gunslinging . | . . . . . . . . . . Exploded 2 | . . . . . 2 . . . . Melee 1 | . . . . . . . . . 1 Uniques/NPCs Destroyed . | . . . . . . . . . . Combat | -11 -10 -9 -9 -8 -7 -7 -7 -7 -7 -------- Run | Yrd Mat Mat Sto Mat Fac Low Low Zio Dee Hostile Shots Fired 661 | . 30 77 136 2 186 32 132 . 66 Missed 223 | . 8 28 46 . 76 11 30 . 24 Hits 438 | . 22 49 90 2 110 21 102 . 42 Melee 7 | . . . 4 . . . 3 . . Projectile 431 | . 22 49 86 2 110 21 99 . 42 AOE 2 | . . . . . 2 . . . . Critical Strikes 14 | . . 2 6 . 1 . 5 . . Damage Taken 4690 | . 180 278 889 29 1082 173 1230 . 829 Core 925 | . 13 42 167 . 90 33 349 . 231 Absorbed by Shields . | . . . . . . . . . . Ignored by Resistances 1574 | . 57 186 359 8 332 57 353 . 222 Regen/Repaired (Parts) 72 | . . . . . 72 . . . . Core Remaining (%) 85 | 100 94 . 47 100 . . . . . Volleys Fired 244 | . 10 41 74 8 52 12 35 . 12 Largest 3 | . 2 2 2 3 3 3 3 . 1 Hottest 198 | . 90 128 124 184 184 120 198 . 69 Shots Fired 535 | . 20 77 147 24 146 33 76 . 12 Gun 303 | . 20 29 74 8 77 20 69 . 6 Cannon 226 | . . 48 73 16 69 13 7 . . Launcher . | . . . . . . . . . . Special 6 | . . . . . . . . . 6 Kinetic . | . . . . . . . . . . Thermal 514 | . 20 77 147 24 131 33 76 . 6 Explosive . | . . . . . . . . . . Electromagnetic 15 | . . . . . 15 . . . . Robot Hit Streak 46 | . 19 11 46 5 13 19 30 . 16 Robot Miss Streak 9 | . . 2 3 4 9 2 2 . 3 Penetration Max . | . . . . . . . . . . Secondary Targets 2 | . 1 . . . . . 1 . . Max Gunslinging Chain 1 | . 1 . . . . . 1 . . Shots Hit Robots 386 | . 19 49 108 13 99 22 64 . 12 Core Hits 140 | . 8 16 41 3 39 6 22 . 5 Critical Kills 2 | . . . 2 . . . . . . Critical Parts Destroyed . | . . . . . . . . . . Critical Strikes 19 | . 2 3 6 1 2 1 4 . . Burn 17 | . 2 3 4 1 2 1 4 . . Meltdown 2 | . . . 2 . . . . . . Melee Attacks 5 | . . . . . . . . . 5 Impact . | . . . . . . . . . . Slashing . | . . . . . . . . . . Piercing 5 | . . . . . . . . . 5 Sneak Attacks . | . . . . . . . . . . Combat Hostiles . | . . . . . . . . . . Follow-up Attacks . | . . . . . . . . . . Damage Inflicted 7549 | . 221 939 2056 233 2071 458 1336 . 235 Guns 4181 | . 221 290 1023 59 1007 281 1207 . 93 Cannons 3110 | . . 636 1020 174 974 177 129 . . Explosions 77 | . . . . . 77 . . . . Melee 142 | . . . . . . . . . 142 Ramming 39 | . . 13 13 . 13 . . . . Kinetic . | . . . . . . . . . . Thermal 7206 | . 221 926 2043 233 1896 458 1336 . 93 Explosive . | . . . . . . . . . . Electromagnetic 162 | . . . . . 162 . . . . Impact . | . . . . . . . . . . Slashing . | . . . . . . . . . . Piercing 142 | . . . . . . . . . 142 Highest Corruption 2 | . . . 2 . 2 2 2 . . Average Corruption 1 | . . . 1 . 1 2 1 . . Corruption Purged 2 | . . . . . . . 2 . . Corruption Blocked . | . . . . . . . . . . Effects 57 | . . . 11 . 11 23 12 . . Message Errors 12 | . . . 1 . 3 4 4 . . Matter Fused 14 | . . . 4 . 1 7 2 . . Heat Flow Errors 2 | . . . . . 1 . 1 . . Energy Discharges 7 | . . . 2 . 1 3 1 . . Parts Rejected 1 | . . . . . . 1 . . . Parts Fused 2 | . . . . . 1 1 . . . Data Loss (minor) 12 | . . . 3 . 3 3 3 . . Data Loss (major) 4 | . . . 1 . . 2 1 . . Misfires 1 | . . . . . . 1 . . . Alerts 2 | . . . . . 1 1 . . . Overload Shots 7 | . . . . . . . 7 . . Overflow Damage 47 | . . 18 24 . 3 2 . . . Projectiles 47 | . . 18 24 . 3 2 . . . Explosions . | . . . . . . . . . . Melee . | . . . . . . . . . . Knockbacks . | . . . . . . . . . . Impact . | . . . . . . . . . . Kinetic . | . . . . . . . . . . Secondary . | . . . . . . . . . . Self-Inflicted Damage . | . . . . . . . . . . Shots . | . . . . . . . . . . Rammed . | . . . . . . . . . . Targets Rammed 6 | . . 1 2 . 3 . . . . Kicked 6 | . . 1 2 . 3 . . . . Crushed . | . . . . . . . . . . Highest Temperature 402 | . 201 345 402 96 36 . 140 . 2 Average Temperature 96 | . 81 132 86 32 14 . 27 . 2 Received Heat Transfer 1593 | . 93 78 357 15 183 30 621 . 216 Effects 3 | . . 1 2 . . . . . . Shutdowns 1 | . . . 1 . . . . . . Energy Bleed 1 | . . . 1 . . . . . . Short Circuit 1 | . . 1 . . . . . . . Siege Activations . | . . . . . . . . . . Martial Activations . | . . . . . . . . . . Shielding Activations . | . . . . . . . . . . Robots Disrupted . | . . . . . . . . . . Combat Hostiles . | . . . . . . . . . . Robots Corrupted . | . . . . . . . . . . Combat Hostiles . | . . . . . . . . . . Parts Fried . | . . . . . . . . . . Impact Corruptions . | . . . . . . . . . . Robots Melted 9 | . . . 3 . 2 2 2 . . Combat Hostiles 9 | . . . 3 . 2 2 2 . . Parts Melted 40 | . 2 2 13 2 16 3 2 . . Heat Transferred 15550 | . 743 2109 4440 555 3745 979 2794 . 185 Parts Sabotaged . | . . . . . . . . . . Parts Stolen . | . . . . . . . . . . Parts Stripped . | . . . . . . . . . . Power Chain Reactions 1 | . . . . . 1 . . . . Alert | -11 -10 -9 -9 -8 -7 -7 -7 -7 -7 ------- Run | Yrd Mat Mat Sto Mat Fac Low Low Zio Dee Maximum Alert Level 1 | . . . 1 . . . . . . Low Security (%) 90 | 100 100 100 68 100 100 . . . . Level 1 9 | . . . 31 . . . . . . Level 2 . | . . . . . . . . . . Level 3 . | . . . . . . . . . . Level 4 . | . . . . . . . . . . Level 5 . | . . . . . . . . . . High Security . | . . . . . . . . . . Max Security . | . . . . . . . . . . Peak Influence 317 | . 90 132 317 171 164 . . . . Initial 84 | . . 10 43 84 9 . . . . Average 79 | . 32 41 145 91 60 . . . . Influence Increases 2354 | . 120 332 845 130 602 50 275 . . Destroy 0b10 Robot/C 1600 | . 100 220 560 60 380 40 240 . . Destroy 0b10 Robot/NC 110 | . . 20 35 15 35 . 5 . . Destroy Leader 464 | . 20 74 182 24 124 10 30 . . Allied During Kill 47 | . . . . 22 25 . . . . Successful Hack 7 | . . . 4 . 3 . . . . Disable Machine 63 | . . 18 18 9 18 . . . . Destroy Structure 3 | . . . 1 . 2 . . . . Lose Combat Pursuer 60 | . . . 45 . 15 . . . . Influence Decreases 2354 | . 90 240 732 341 577 99 255 20 . Entered New Map 308 | . . 20 79 151 15 23 . 20 . Time Decay 1812 | . 90 220 613 190 438 76 185 . . Lost Part 150 | . . . 40 . 40 . 70 . . Lost Ally 84 | . . . . . 84 . . . . Squads Dispatched 14 | . 1 1 5 1 6 . . . . Investigation 3 | . 1 1 . . 1 . . . . Extermination 3 | . . . . . 3 . . . . Reinforcement 4 | . . . 2 . 2 . . . . Assault . | . . . . . . . . . . Garrison 4 | . . . 3 1 . . . . . Intercept . | . . . . . . . . . . Searches Triggered . | . . . . . . . . . . Construction Impeded . | . . . . . . . . . . Haulers Reinforced . | . . . . . . . . . . Active Scanning Responses . | . . . . . . . . . . Cargo Convoy Interrupts . | . . . . . . . . . . Stealth | -11 -10 -9 -9 -8 -7 -7 -7 -7 -7 --------- Run | Yrd Mat Mat Sto Mat Fac Low Low Zio Dee Distress Signals 9 | . . 1 6 1 1 . . . . Communications Jammed . | . . . . . . . . . . Distress Signals . | . . . . . . . . . . Times Spotted 137 | . 15 20 38 10 31 2 12 . 9 Peak Tracking Total 7 | . 3 4 7 3 5 1 7 . 7 Tactical Retreats 10 | . 2 1 6 . 1 . . . . ECM-based Alert Blocks 15 | . 6 2 7 . . . . . . Traps | -11 -10 -9 -9 -8 -7 -7 -7 -7 -7 ------- Run | Yrd Mat Mat Sto Mat Fac Low Low Zio Dee Traps Triggered 7 | . 1 1 5 . . . . . . Indirectly . | . . . . . . . . . . Trap Hack Attempts . | . . . . . . . . . . Triggered . | . . . . . . . . . . Disarmed . | . . . . . . . . . . Reprogrammed . | . . . . . . . . . . Reused . | . . . . . . . . . . Traps Extracted . | . . . . . . . . . . Installed . | . . . . . . . . . . Triggered . | . . . . . . . . . . Machines | -11 -10 -9 -9 -8 -7 -7 -7 -7 -7 ---------- Run | Yrd Mat Mat Sto Mat Fac Low Low Zio Dee Machines Disabled 7 | . . 2 2 1 2 . . . . Max in Single Turn 1 | . . 1 1 . 1 . . . . Machines Repaired . | . . . . . . . . . . Machines Dismantled . | . . . . . . . . . . Machines Sabotaged . | . . . . . . . . . . Overloaded Fab Kills . | . . . . . . . . . . Hacking | -11 -10 -9 -9 -8 -7 -7 -7 -7 -7 --------- Run | Yrd Mat Mat Sto Mat Fac Low Low Zio Dee Machines Accessed 6 | . . . 2 1 2 . 1 . . Terminals 4 | . . . 2 1 . . 1 . . Fabricators 1 | . . . . . 1 . . . . Repair Stations 1 | . . . . . 1 . . . . Recycling Units . | . . . . . . . . . . Scanalyzers . | . . . . . . . . . . Garrison Access . | . . . . . . . . . . Total Hacks 17 | . . . 4 2 6 . 5 . . Successful 15 | . . . 4 2 4 . 5 . . Failed 2 | . . . . . 2 . . . . Catastrophic . | . . . . . . . . . . Database Lockouts . | . . . . . . . . . . Manual 5 | . . . . . . . . 5 . Terminals 11 | . . . 4 2 . . 5 . . Fabricators 2 | . . . . . 2 . . . . Repair Stations 4 | . . . . . 4 . . . . Recycling Units . | . . . . . . . . . . Scanalyzers . | . . . . . . . . . . Garrison Access . | . . . . . . . . . . Terminal Hacks 11 | . . . 4 2 . . 5 . . Record 5 | . . . . . . . 5 . . Prototype ID Bank 1 | . . . . 1 . . . . . Open Door 1 | . . . 1 . . . . . . Alert Level 1 | . . . 1 . . . . . . Reinforcement Status 1 | . . . 1 . . . . . . Zone Layout 2 | . . . 1 1 . . . . . Fabricator Hacks 1 | . . . . . 1 . . . . Network Status 1 | . . . . . 1 . . . . Repair Station Hacks 3 | . . . . . 3 . . . . Scan Component 2 | . . . . . 2 . . . . Repair 1 | . . . . . 1 . . . . Recycling Unit Hacks . | . . . . . . . . . . Scanalyzer . | . . . . . . . . . . Garrison Access Hacks . | . . . . . . . . . . Unauthorized Hacks . | . . . . . . . . . . Terminals . | . . . . . . . . . . Fabricators . | . . . . . . . . . . Repair Stations . | . . . . . . . . . . Recycling Units . | . . . . . . . . . . Scanalyzers . | . . . . . . . . . . Garrison Access . | . . . . . . . . . . Data Cores Recovered 2 | . . 1 . 1 . . . . . Used 1 | . . . . 1 . . . . . Hacking Detections 4 | . . . 1 1 1 . 1 . . Full Trace Events 1 | . . . . . 1 . . . . Feedback Events . | . . . . . . . . . . Feedback Blocked . | . . . . . . . . . . Robot Schematics Acquired . | . . . . . . . . . . Robots Built . | . . . . . . . . . . Authchips . | . . . . . . . . . . Time . | . . . . . . . . . . Total Robot Build Rating . | . . . . . . . . . . Part Schematics Acquired 5 | . . . . . . . . 5 . Parts Built . | . . . . . . . . . . Authchips . | . . . . . . . . . . Time . | . . . . . . . . . . Total Part Build Rating . | . . . . . . . . . . Part Studies Acquired . | . . . . . . . . . . Parts Repaired 1 | . . . . . 1 . . . . Time 44 | . . . . . 44 . . . . Parts Recycled . | . . . . . . . . . . Recycled Matter . | . . . . . . . . . . Retrieved Matter . | . . . . . . . . . . Retrieved Components . | . . . . . . . . . . Parts Scanalyzed . | . . . . . . . . . . Part Schematics Acquired . | . . . . . . . . . . Parts Damaged . | . . . . . . . . . . Bothacking | -11 -10 -9 -9 -8 -7 -7 -7 -7 -7 ------------ Run | Yrd Mat Mat Sto Mat Fac Low Low Zio Dee Used RIF Installer . | . . . . . . . . . . Robots Hacked . | . . . . . . . . . . Non-combat . | . . . . . . . . . . Combat . | . . . . . . . . . . Robot Hacks Applied . | . . . . . . . . . . Relay Couplers Released 3 | . . . . . 3 . . . . Programmers 3 | . . . . . 3 . . . . Fabnet Peak Effective % . | . . . . . . . . . . Robots Rewired . | . . . . . . . . . . Allies Hacked . | . . . . . . . . . . Hacks Repelled . | . . . . . . . . . . Allies | -11 -10 -9 -9 -8 -7 -7 -7 -7 -7 -------- Run | Yrd Mat Mat Sto Mat Fac Low Low Zio Dee Total Allies 10 | . . . 10 . . . . . . Largest Group 10 | . . . 10 10 10 . . . . Highest-Rated Group 88 | . . . 88 88 88 . . . . Highest-Rated Ally 16 | . . . 16 16 16 . . . . Total Orders 5 | . . . . 2 3 . . . . FOLLOW 2 | . . . . 1 1 . . . . GUARD 3 | . . . . 1 2 . . . . Ally Attacks 73 | . . . . 42 31 . . . . Total Damage 588 | . . . . 353 235 . . . . Kills 8 | . . . . 4 4 . . . . Allies Corrupted . | . . . . . . . . . . Allies Melted . | . . . . . . . . . . Intel | -11 -10 -9 -9 -8 -7 -7 -7 -7 -7 ------- Run | Yrd Mat Mat Sto Mat Fac Low Low Zio Dee Active Infowar (turns) 6985 | . 94 623 606 384 1295 1284 1542 821 336 Terrain 201 | . . . . . . . . . 201 Seismic 795 | . . 450 345 . . . . . . T.N.C. 5718 | . . . 257 384 1295 1284 1542 821 135 ECM 1066 | . 94 623 349 . . . . . . Robot Analysis Total . | . . . . . . . . . . Derelict Logs Recovered 3 | . . . . . . . 2 1 . Drone Launches 1 | . . . . . . . . . 1 Drone Recoveries . | . . . . . . . . . . Exploration | -11 -10 -9 -9 -8 -7 -7 -7 -7 -7 ------------- Run | Yrd Mat Mat Sto Mat Fac Low Low Zio Dee Turns Passed 8259 | 344 322 623 1285 384 1295 1284 1542 821 359 Spaces Moved 3887 | 171 238 298 548 276 726 550 393 469 218 Core 250 | 16 . . . . . . 224 . 10 Treads . | . . . . . . . . . . Legs 3637 | 155 238 298 548 276 726 550 169 469 208 Wheels . | . . . . . . . . . . Hover . | . . . . . . . . . . Flight . | . . . . . . . . . . Fastest Speed 50 | 50 120 120 120 120 120 190 120 120 50 Average Speed 182 | 116 120 161 181 120 148 225 359 173 118 Slowest Speed 900 | 190 120 260 190 120 190 470 900 190 190 Overloaded Moves . | . . . . . . . . . . Propulsion Burnouts . | . . . . . . . . . . Robots Hopped . | . . . . . . . . . . Potential Cave-ins . | . . . . . . . . . . Cave-ins Triggered . | . . . . . . . . . . Exploration Rate (%) 45 | 9 42 30 79 33 19 74 64 64 36 Regions Visited 9 Branch Regions 5 Pre-discovered Areas 3 | . . . . . . . 1 2 . Known Exits Taken . | . . . . . . . . . . Unknown Exits Taken 9 | 1 1 1 1 1 1 1 1 1 . Scrap Searched 3 | . . . . . . 1 1 1 . Spaces Dug . | . . . . . . . . . . Terrain Destroyed 2 | . . . . . . . 2 . . Melee . | . . . . . . . . . . Projectile 2 | . . . . . . . 2 . . AOE . | . . . . . . . . . . Terrain Rammed . | . . . . . . . . . . Walls Destroyed . | . . . . . . . . . . Machines Disabled . | . . . . . . . . . . Actions | -11 -10 -9 -9 -8 -7 -7 -7 -7 -7 --------- Run | Yrd Mat Mat Sto Mat Fac Low Low Zio Dee Total 4580 | 316 254 362 692 311 833 573 457 478 304 Wait 236 | 134 . . 22 7 . 8 11 . 54 Move 3878 | 170 237 297 547 275 725 549 392 468 218 Hop . | . . . . . . . . . . Pick Up 86 | 6 5 9 20 5 22 2 8 6 3 Fast Attach . | . . . . . . . . . . Attach 53 | 6 1 4 8 4 9 2 11 4 4 Detach 1 | . . . . . 1 . . . . Swap 28 | . 1 6 7 6 7 . . . 1 Drop 43 | . . 4 12 6 14 . . . 7 Fire 244 | . 10 41 74 8 52 12 35 . 12 Melee 5 | . . . . . . . . . 5 Ram . | . . . . . . . . . . Kick 6 | . . 1 2 . 3 . . . . Crush . | . . . . . . . . . . Escape Stasis . | . . . . . . . . . . Rewire . | . . . . . . . . . . Trap . | . . . . . . . . . . Miscellaneous . | . . . . . . . . . . Route ------- -11/Scrapyard -10/Materials (discovered 2 exits: [*Mat] / [*Min]) -9/Materials (discovered 2 exits: *Sto x2) -9/Storage -8/Materials -7/Factory -7/Lower Caves -7/Lower Caves (discovered 2 exits: [*Fac] / *Zio) -7/Zion -7/Deep Caves History --------- Turn | Location | Event 8 | -11/Scrapyard | Discovered new exit (range 15) 345 | -11/Scrapyard | Entered Materials 346 | -10/Materials | Build established: Mutant 403 | -10/Materials | Discovered new exit (range 6) 453 | -10/Materials | Discovered new exit (range 13) 667 | -10/Materials | Entered another Materials area 667 | -9/Materials | Evolved 2 slots: Utility x2 688 | -9/Materials | Discovered new exit (range 13) 1037 | -9/Materials | Discovered new exit (range 16) 1290 | -9/Materials | Entered Storage 1938 | -9/Storage | Build established: Scavenger-Mutant 2125 | -9/Storage | Garrison activated, responded to threat 2191 | -9/Storage | Destroyed 8 combat bots 2423 | -9/Storage | Core integrity fell below 50% 2441 | -9/Storage | Assisted by bots powering up and referring to "LRC-V3" 2448 | -9/Storage | Discovered new exit (range 16) 2575 | -9/Storage | Entered Materials 2575 | -8/Materials | Accompanied by 10 allies 2575 | -8/Materials | Evolved 2 slots: Propulsion x1, Weapon x1 2602 | -8/Materials | Garrison activated, responded to threat 2870 | -8/Materials | Build established: Commander-Skirmisher 2939 | -8/Materials | Discovered new exit (range 5) 2959 | -8/Materials | Entered Factory 2959 | -7/Factory | Accompanied by 10 allies 2959 | -7/Factory | Evolved 2 slots: Power x1, Utility x1 3215 | -7/Factory | Lost 8 allies 3383 | -7/Factory | Build established: Scavenger-Skirmisher 3681 | -7/Factory | Destroyed 7 combat bots 4166 | -7/Factory | Build established: Scavenger-Tank 4200 | -7/Factory | Repaired Imp. Deuterium Engine 4222 | -7/Factory | Discovered new exit (range 7) 4254 | -7/Factory | Entered Lower Caves 5131 | -7/Lower Caves | Discovered new exit (range 11) 5484 | -7/Lower Caves | Attracted the attention of an 0b10 checkpoint 5538 | -7/Lower Caves | Entered another Lower Caves area 5638 | -7/Lower Caves | Discovered new exit (range 6) 5819 | -7/Lower Caves | Build established: Tank 6092 | -7/Lower Caves | Attracted the attention of an 0b10 base 6141 | -7/Lower Caves | Core integrity fell below 50% 6152 | -7/Lower Caves | Lost 8 parts (2p3u3w) 6215 | -7/Lower Caves | Learned Factory emergency access door positions 6215 | -7/Lower Caves | Learned Factory stockpile data 6215 | -7/Lower Caves | Learned Extension garrison access intel 6471 | -7/Lower Caves | Build established: Scavenger-Mutant 6998 | -7/Lower Caves | Build established: Scavenger-Skirmisher 7043 | -7/Lower Caves | Lost 4 parts (1n1u2w) 7055 | -7/Lower Caves | Discovered new exit (range 12) 7063 | -7/Lower Caves | Learned Factory trap positions 7080 | -7/Lower Caves | Entered Zion 7103 | -7/Zion | Given A8's code to call for help 7124 | -7/Zion | Found CR-A16's Pointy Stick 7177 | -7/Zion | Acquired unknown access codes intercepted by a Zionite 7298 | -7/Zion | Build established: Scavenger-Mutant 7306 | -7/Zion | Given the Hacking Drone Bay 7306 | -7/Zion | Found Prototype Device 7326 | -7/Zion | Identified Hacking Drone Bay 7803 | -7/Zion | Learned location of Warlord (-4) 7877 | -7/Zion | Opened final containment barrier to the Deep Caves 7894 | -7/Zion | Discovered new exit (range 5) 7896 | -7/Zion | Saw the warning signs outside the Deep Caves entrance 7901 | -7/Zion | Entered Deep Caves 7960 | -7/Deep Caves | Lost 3 parts (1p2w) 8031 | -7/Deep Caves | Found Unknown Processor 8033 | -7/Deep Caves | Found Unknown Device 8036 | -7/Deep Caves | Identified Surveybot 24 Chip 8038 | -7/Deep Caves | Identified Surveybot 24 Scanner 8226 | -7/Deep Caves | Attacked by Z-Imprinter 8256 | -7/Deep Caves | Core integrity fell below 20% 8260 | -7/Deep Caves | Destroyed by Z-Imprinter with Zionite Laser-M Last Messages --------------- Z-Imprinter: GET AWAY FROM HERE! I've worked too hard for our future just to have you ruin everything! Jacked Z-Imprinter... Command string: \\XEP4 No effect. Flexi-carbon Leg destroyed. Surveybot 24 Scanner destroyed. Mak. Power Source destroyed. Aluminum Leg destroyed. Dropped Sml. Storage Unit. Dropped Imp. Heat Sink. Hacking Drone released from Hacking Drone Bay. Dropped Imp. Remote Datajack. Dropped Mak. Laser. Dropped CR-A16's Pointy Stick. Aluminum Leg destroyed. Hacking Drone Bay destroyed. >> Lost connection to Hacking Drone. Hacking Drone destroyed. Map ----- +----------------------------------------------------+ | ??????????????????????????????????????""?""" | | ???????????????????????????????????????""?"" | | ????????????????????????????????????????"""" | | ??????????????????????????????????????" " ? | | ??????????????????????????????????????"" | | ?????????????????????????????????????"" | | ???????????????????????????????????""""" | | ????????????????????????????????"""""?"" | | ????????????????????????????????""?"?""""" | | ????????????????????????????????"""""?"""""" | | ??????????????????????? ???"""""" | | ????????????????????? """""" """ | | ?????????????????? ""?""" """"" | | ???????????????? """""" """"""" | | ?????????????? """"" """"""" | | ?????????????? """" """"""" | | ????????????? """" """"" | | ????????????? """" """ | | ???????????? """" | | ???????????? """"""""""" | | ???????????? """"""""" | | ??????????? | | ??????????? | | ?????????? I | | ?????????? | | ?????????? @ | | ?????????? | | ?????????? #" | | ??????????? ### zz### """## | | ??????????? ????# z #### %!/ ###### | | ???????????? ???????########## |![ "######### | | ??????????????????????#?###########;############## | | ????????????????????????########################## | | | | | | | | | | | | | | | | | | | | | | | | | | | | | | | | | | | +----------------------------------------------------+ Best States ------------- Heat Dissipation 85 Energy Generation 30 Energy Capacity 505 Matter Stores 300 Matter Capacity 300 Sight Range 16 Terrain Scan Range 24 Terrain Scan Density 2010 ECM Strength 1 Base Temperature (-) 100 Armor Coverage 225 Resistance: KI 40 Resistance: TH 20 Resistance: EX 20 Resistance: EM 20 Resistance: I 20 Resistance: S 20 Resistance: P 20 Evasion (%) 55 Energy Filtering 30 Offensive Hacking 10 Item Schematics ----------------- Flak Gun | -7/Zion | Archive Arm. Leg | -7/Zion | Archive Imp. Shock Absorption System | -7/Zion | Archive Lrn. Tractor Beam | -7/Zion | Archive Imp. Deuterium Engine | -7/Zion | Archive Robot Schematics ------------------ None Fabricated ------------ Nothing Repaired ---------- Imp. Deuterium Engine | 10% | -7/Factory Studied --------- None Alien Tech Used ----------------- None Achievements -------------- Adventurer Botjacking DIY Cooler Omniscient Cartographer Signs Are For Wimps Challenges ------------ None Game ------ Seed CooledVortexGun Manual? 0 Play Time 00:57:08 Cumulative 17.6 hours Start 2026.02.17 @ 15:09:24 End 2026.02.17 @ 16:08:26 Sessions 1 Manual Loads 0 Difficulty Adventurer Special Mode None Game No. 19 Rogue 0 Adventurer 19 Explorer 0 Win Type - Total 0 Types 0/0/0/0/0/0/0/0/0/0 Lore% 6 Gallery% 23 Achievement% 21 Wizard Run 0 Options --------- Layout 1 ASCII 0 Keyboard 0 Movement Mouse Keybinds 0 Fullscreen 1 Font 24/X11 Map View 50x35 Zoom Use 0% Tactical HUD 0 Map Filters NONE Filters NONE Steam 1 RUN: 109f5a93-c042-494c-906f-f7609dc49b9e